bitfinex-derivatives/quotes_BTCF0:USTF0_20241227
["timestamp","ask_amount","ask_price","bid_price","bid_amount"]
[1735333432461,0.16327826,94701.0,94700.0,0.053874]
[1735333432961,0.052872,94704.0,94702.0,0.052873]
[1735333435754,0.058872,94704.0,94702.0,0.052873]
[1735333436059,0.052874,94701.0,94700.0,0.01356361]
[1735333436262,0.006,94704.0,94695.0,0.052877]
[1735333436463,0.052876,94697.0,94695.0,0.052877]
[1735333438060,0.052876,94697.0,94695.0,0.06634728]
[1735333439264,0.054876,94697.0,94695.0,0.06634728]
[1735333439648,0.057876,94697.0,94695.0,0.06634728]
[1735333439852,0.055876,94697.0,94695.0,0.06634728]
[1735333440058,0.052876,94697.0,94695.0,0.06634728]
[1735333440257,0.053876,94697.0,94695.0,0.06634728]
[1735333440654,0.054876,94697.0,94695.0,0.06634728]
[1735333441350,0.054876,94697.0,94695.0,0.01347028]
[1735333441650,0.052883,94684.0,94672.0,0.61119889]
[1735333441952,0.052888,94676.0,94675.0,0.02170992]
[1735333442164,0.052888,94676.0,94675.0,0.00844]
[1735333442857,0.052888,94676.0,94675.0,0.01544]
[1735333443453,0.053888,94676.0,94675.0,0.01344]
[1735333443656,0.053888,94676.0,94675.0,0.01544]
[1735333444953,0.052888,94676.0,94675.0,0.01444]
[1735333445152,0.052888,94676.0,94675.0,0.01344]
[1735333451568,0.052885,94682.0,94681.0,0.052884]
[1735333452365,0.052885,94682.0,94675.0,0.005]
[1735333452564,0.052887,94677.0,94675.0,0.004]
[1735333452762,0.052887,94677.0,94675.0,0.056888]
[1735333452963,0.052887,94677.0,94676.0,0.00844]
[1735333453266,0.052887,94677.0,94676.0,0.061328]
[1735333454158,0.052887,94677.0,94676.0,0.00844]
[1735333454557,0.052887,94677.0,94676.0,0.01244]
[1735333455270,0.052887,94677.0,94676.0,0.01344]
[1735333455667,0.413687,94677.0,94676.0,0.01244]
[1735333462074,0.413687,94677.0,94676.0,0.065328]
[1735333464170,0.413687,94677.0,94676.0,0.01244]
[1735333465988,0.413687,94677.0,94676.0,0.00328872]
[1735333471986,0.57215339,94677.0,94676.0,0.00328872]
[1735333473184,0.413687,94677.0,94676.0,0.00328872]
[1735333475780,0.413687,94677.0,94674.0,0.1663899]
[1735333475781,0.3608,94677.0,94674.0,0.1663899]
[1735333476087,0.052888,94675.0,94674.0,0.1663899]
[1735333476783,0.052888,94675.0,94674.0,0.1703899]
[1735333476973,0.052888,94675.0,94674.0,0.1713899]
[1735333477174,0.24305207,94675.0,94674.0,0.005]
[1735333478175,0.052888,94675.0,94674.0,0.005]
[1735333482586,0.2433154,94675.0,94674.0,0.005]
[1735333483792,0.052888,94675.0,94674.0,0.005]
[1735333487394,0.21161814,94675.0,94674.0,0.005]
[1735333491599,0.052888,94675.0,94674.0,0.005]
[1735333495395,0.169888,94675.0,94674.0,0.005]
[1735333497695,0.052897,94659.0,94652.0,0.25039889]
[1735333497901,0.0405,94658.0,94652.0,0.25039889]
[1735333498107,0.052901,94653.0,94651.0,0.25039889]
[1735333498314,0.4011,94652.0,94651.0,0.25039889]
[1735333498795,0.3961,94652.0,94651.0,0.25039889]
[1735333499297,0.3911,94652.0,94651.0,0.25039889]
[1735333499699,0.55065301,94652.0,94651.0,0.011]
[1735333500501,0.55065301,94652.0,94651.0,0.00260753]
[1735333500701,0.15955301,94652.0,94651.0,0.00260753]
[1735333500906,0.001,94652.0,94651.0,0.00260753]
[1735333501199,0.001,94652.0,94651.0,1.50260753]
[1735333501891,0.001,94652.0,94651.0,0.00260753]
[1735333503198,0.4436,94652.0,94651.0,0.00260753]
[1735333507611,0.4436,94652.0,94637.0,0.3608]
[1735333507612,0.052909,94638.0,94637.0,0.3608]
[1735333508999,0.054909,94638.0,94637.0,0.3628]
[1735333509309,0.052914,94629.0,94623.0,0.052917]
[1735333510212,0.052914,94629.0,94628.0,0.37166547]
[1735333510615,0.053914,94629.0,94628.0,0.37166547]
[1735333511508,0.053914,94629.0,94628.0,0.37266547]
[1735333514112,0.001,94629.0,94628.0,0.37266547]
[1735333514513,0.052908,94640.0,94637.0,0.052909]
[1735333514718,0.052908,94640.0,94638.0,0.092009]
[1735333516606,0.053908,94640.0,94638.0,0.092009]
[1735333517305,0.052908,94640.0,94638.0,0.092009]
[1735333517500,0.053908,94640.0,94638.0,0.0391]
[1735333518613,0.053908,94640.0,94636.0,0.3608]
[1735333518614,0.05291,94637.0,94636.0,0.3608]
[1735333519609,0.052905,94646.0,94629.0,0.0407]
[1735333519914,0.052913,94630.0,94629.0,0.0407]
[1735333520807,0.052913,94630.0,94629.0,0.0417]
[1735333521315,0.052913,94630.0,94629.0,0.001]
[1735333521516,0.05292,94619.0,94618.0,0.25039889]
[1735333521912,0.3608,94620.0,94613.0,0.25039889]
[1735333522120,0.052922,94616.0,94613.0,0.25039889]
[1735333522414,0.051922,94616.0,94613.0,0.25039889]
[1735333522611,0.051922,94616.0,94614.0,0.052922]
[1735333523214,0.052922,94614.0,94613.0,0.25039889]
[1735333523414,0.052922,94614.0,94613.0,0.004]
[1735333524120,0.048922,94614.0,94612.0,0.3608]
[1735333525021,0.1073592,94622.0,94612.0,0.3608]
[1735333525207,0.052923,94613.0,94612.0,0.3608]
[1735333526614,0.053923,94613.0,94612.0,0.3608]
[1735333529022,0.053923,94613.0,94612.0,0.32770568]
[1735333529207,0.052928,94604.0,94603.0,0.25039889]
[1735333529411,0.052928,94604.0,94603.0,1.76080071]
[1735333530120,0.052928,94604.0,94603.0,1.51040182]
[1735333530522,0.053928,94604.0,94603.0,1.51040182]
[1735333531923,0.054928,94604.0,94603.0,1.51040182]
[1735333535923,0.054928,94604.0,94603.0,0.01040182]
[1735333536127,0.002,94604.0,94599.0,0.0408]
[1735333536325,0.05293,94601.0,94596.0,0.052932]
[1735333536627,0.05293,94601.0,94597.0,0.052931]
[1735333536927,0.05293,94601.0,94598.0,0.052931]
[1735333538028,0.05293,94601.0,94600.0,0.11047284]
[1735333538623,0.05393,94601.0,94600.0,0.11047284]
[1735333539828,0.05493,94601.0,94600.0,0.11047284]
[1735333542127,0.05493,94601.0,94600.0,0.16340284]
[1735333542724,0.05493,94601.0,94600.0,0.11047284]
[1735333543428,0.05493,94601.0,94600.0,0.1]
[1735333543730,0.05493,94601.0,94589.0,0.25039889]
[1735333543731,0.052936,94590.0,94589.0,0.25039889]
[1735333544826,0.0772,94592.0,94583.0,0.36232]
[1735333545025,0.052939,94584.0,94583.0,0.3608]
[1735333547227,0.053939,94584.0,94583.0,0.3608]
[1735333547531,0.053939,94584.0,94583.0,0.37159622]
[1735333547926,0.054939,94584.0,94583.0,0.37159622]
[1735333550934,0.052939,94584.0,94583.0,0.37159622]
[1735333551126,0.053939,94584.0,94583.0,0.37159622]
[1735333552230,0.053939,94584.0,94583.0,0.01079622]
[1735333552440,0.001,94584.0,94581.0,0.05294]
[1735333552627,0.05294,94583.0,94581.0,0.05294]
[1735333554435,0.05394,94583.0,94581.0,0.05294]
[1735333555026,0.001,94583.0,94580.0,0.01046185]
[1735333555223,0.001,94583.0,94574.0,0.25039889]
[1735333555435,0.052944,94575.0,94574.0,0.25039889]
[1735333555826,0.052947,94570.0,94568.0,0.04002947]
[1735333556040,0.052958,94550.0,94549.0,0.44151243]
[1735333557435,0.0388,94551.0,94539.0,0.2530104]
[1735333557436,0.052964,94541.0,94539.0,0.2530104]
[1735333558832,0.052964,94541.0,94538.0,0.052965]
[1735333558833,0.01245755,94540.0,94538.0,0.052965]
[1735333559029,0.01245755,94539.0,94538.0,0.052965]
[1735333559434,0.01245755,94540.0,94538.0,0.052965]
[1735333559740,0.01245755,94539.0,94538.0,0.06338546]
[1735333560135,0.01345755,94539.0,94538.0,0.06338546]
[1735333560631,0.01245755,94539.0,94538.0,0.06338546]
[1735333561226,0.01345755,94539.0,94538.0,0.06338546]
[1735333561435,0.01445755,94539.0,94538.0,0.06338546]
[1735333561741,0.19026361,94568.0,94538.0,2.17122046]
[1735333562048,0.19026361,94568.0,94560.0,0.413753]
[1735333562741,0.3608,94574.0,94573.0,0.052945]
[1735333562926,0.15821682,94585.0,94568.0,0.3608]
[1735333563130,0.05294,94582.0,94569.0,0.0379]
[1735333563529,0.05294,94582.0,94577.0,0.052943]
[1735333564426,0.05394,94582.0,94569.0,0.0379]
[1735333564642,0.05394,94582.0,94578.0,0.052942]
[1735333565142,0.05494,94582.0,94578.0,0.052942]
[1735333565342,0.05494,94582.0,94577.0,0.052943]
[1735333565647,0.002,94582.0,94577.0,0.052943]
[1735333565841,0.052942,94580.0,94577.0,0.052943]
[1735333566342,0.052942,94579.0,94577.0,0.052943]
[1735333567035,0.052946,94572.0,94568.0,0.3608]
[1735333567234,0.052943,94578.0,94568.0,0.3608]
[1735333567445,0.052943,94577.0,94568.0,0.3608]
[1735333567743,0.052943,94577.0,94575.0,0.052944]
[1735333569137,0.002,94577.0,94575.0,0.052944]
[1735333570843,0.052944,94576.0,94575.0,0.052944]
[1735333571233,0.052946,94572.0,94570.0,0.052947]
[1735333573439,0.053946,94572.0,94570.0,0.052947]
[1735333573938,0.053946,94572.0,94571.0,0.3608]
[1735333575043,0.052946,94572.0,94571.0,0.3608]
[1735333575236,0.053946,94572.0,94571.0,0.3608]
[1735333575740,0.053946,94572.0,94562.0,0.3608]
[1735333575937,0.052955,94556.0,94550.0,0.3608]
[1735333576443,0.052955,94556.0,94554.0,0.2637468]
[1735333576646,0.052955,94556.0,94554.0,0.0107364]
[1735333576842,0.0752,94562.0,94550.0,0.3608]
[1735333577040,0.052958,94551.0,94550.0,0.3608]
[1735333577944,0.051958,94551.0,94550.0,0.3608]
[1735333579844,0.052958,94551.0,94550.0,0.3608]
[1735333580839,0.052958,94551.0,94549.0,0.06332917]
[1735333582642,0.051958,94551.0,94549.0,0.06332917]
[1735333582847,0.052958,94551.0,94549.0,0.06332917]
[1735333587036,0.054958,94551.0,94549.0,0.06332917]
[1735333587343,0.052962,94544.0,94543.0,0.052962]
[1735333587539,0.3628,94551.0,94532.0,0.413768]
[1735333587738,0.1073592,94542.0,94532.0,0.413768]
[1735333588138,0.1073592,94542.0,94532.0,0.42426237]
[1735333588747,0.1073592,94542.0,94532.0,0.06346237]
[1735333588948,0.052967,94534.0,94532.0,0.06346237]
[1735333589246,0.052968,94533.0,94532.0,0.06346237]
[1735333590548,0.053968,94533.0,94532.0,0.06346237]
[1735333593046,0.06624775,94533.0,94532.0,0.06346237]
[1735333593446,0.01327975,94533.0,94532.0,0.06346237]
[1735333593637,0.4681592,94570.0,94532.0,0.06346237]
[1735333593947,0.052954,94557.0,94555.0,0.052955]
[1735333594142,0.3608,94570.0,94547.0,0.1073592]
[1735333594539,0.052953,94560.0,94557.0,0.052954]
[1735333594949,0.4681592,94570.0,94545.0,1.6164]
[1735333595152,0.052953,94559.0,94558.0,0.052953]
[1735333595848,0.15921682,94561.0,94554.0,0.3608]
[1735333596147,0.002,94561.0,94560.0,0.052953]
[1735333596346,0.001,94561.0,94560.0,0.052953]
[1735333596540,0.05295,94566.0,94564.0,0.05295]
[1735333598641,0.3608,94571.0,94554.0,0.37136409]
[1735333598840,0.052955,94555.0,94554.0,0.37136409]
[1735333601642,0.053955,94555.0,94554.0,0.37136409]
[1735333602350,0.052955,94555.0,94554.0,0.37136409]
[1735333602550,0.002,94555.0,94554.0,0.37136409]
[1735333602747,0.052947,94570.0,94554.0,0.37136409]
[1735333603047,0.052947,94570.0,94560.0,0.1073592]
[1735333604156,0.052947,94570.0,94568.0,0.052948]
[1735333604652,0.054947,94570.0,94568.0,0.052948]
[1735333604849,0.004,94570.0,94569.0,0.3608]
[1735333605038,0.19026361,94577.0,94576.0,0.052944]
[1735333605348,0.052936,94590.0,94586.0,0.052938]
[1735333605555,0.038,94599.0,94590.0,0.052935]
[1735333605556,0.22139527,94593.0,94590.0,0.052935]
[1735333605743,0.22139527,94593.0,94591.0,0.052935]
[1735333606949,0.038,94599.0,94591.0,0.052935]
[1735333607850,0.006,94593.0,94591.0,0.052935]
[1735333608052,0.015,94593.0,94591.0,0.052935]
[1735333608348,0.015,94593.0,94590.0,0.3608]
[1735333608655,0.052935,94592.0,94590.0,0.3608]
[1735333609854,0.061935,94592.0,94590.0,0.3608]
[1735333611152,0.067935,94592.0,94590.0,0.3608]
[1735333614950,0.0374,94591.0,94590.0,0.3608]
[1735333615555,0.052939,94584.0,94583.0,0.01077952]
[1735333615753,0.0774,94591.0,94577.0,0.052943]
[1735333615945,0.052942,94580.0,94577.0,0.052943]
[1735333616757,0.052944,94576.0,94574.0,0.3608]
[1735333617750,0.052944,94576.0,94574.0,0.37138316]
[1735333617751,0.054944,94576.0,94574.0,0.37138316]
[1735333618356,0.056944,94576.0,94574.0,0.37138316]
[1735333618552,0.056944,94576.0,94574.0,0.42432816]
[1735333620760,0.054944,94576.0,94574.0,0.42432816]
[1735333620950,0.054944,94576.0,94574.0,0.01058316]
[1735333621257,0.052948,94569.0,94568.0,0.3608]
[1735333621644,0.05295,94566.0,94564.0,0.05295]
[1735333623456,0.05495,94566.0,94564.0,0.05295]
[1735333625850,0.05495,94566.0,94564.0,0.06354105]
[1735333626152,0.3608,94565.0,94564.0,0.06354105]
[1735333628257,0.3628,94565.0,94564.0,0.06354105]
[1735333630550,0.3628,94565.0,94564.0,0.05295]
[1735333631560,0.3638,94565.0,94564.0,0.05295]
[1735333632555,0.003,94565.0,94564.0,0.41375]
[1735333633162,0.003,94565.0,94564.0,0.45095]
[1735333634053,0.002,94565.0,94564.0,0.45095]
[1735333634253,0.003,94565.0,94564.0,0.45095]
[1735333636063,0.003,94565.0,94564.0,0.49135]
[1735333638165,0.002,94565.0,94564.0,0.49135]
[1735333638358,0.003,94565.0,94564.0,0.49135]
[1735333638560,0.001,94565.0,94564.0,0.49135]
[1735333638759,0.002,94565.0,94564.0,0.49135]
[1735333639365,0.12644635,94573.0,94564.0,0.4384]
[1735333639659,0.12644635,94573.0,94572.0,0.052946]
[1735333639962,0.052944,94576.0,94574.0,0.052944]
[1735333640665,0.052944,94576.0,94574.0,0.413744]
[1735333641066,0.054944,94576.0,94574.0,0.413744]
[1735333641261,0.17969543,94575.0,94574.0,0.413744]
[1735333642262,0.052944,94575.0,94574.0,0.413744]
[1735333642462,0.052944,94575.0,94574.0,0.3608]
[1735333642966,0.056944,94575.0,94574.0,0.413744]
[1735333643471,0.061944,94575.0,94574.0,0.413744]
[1735333643668,0.009,94575.0,94574.0,0.413744]
[1735333644773,0.005,94575.0,94574.0,0.413744]
[1735333644972,0.004,94575.0,94574.0,0.413744]
[1735333645271,0.009,94575.0,94574.0,1.913744]
[1735333646468,0.004,94575.0,94573.0,0.2530104]
[1735333646665,0.061944,94575.0,94574.0,0.2530104]
[1735333646869,0.061944,94575.0,94574.0,0.3059554]
[1735333647256,0.009,94575.0,94574.0,0.6667554]
[1735333647657,0.009,94575.0,94574.0,2.1667554]
[1735333647872,0.13583047,94575.0,94574.0,1.913745]
[1735333648772,0.13183047,94575.0,94574.0,1.913745]
[1735333648976,0.13583047,94575.0,94574.0,1.913745]
[1735333649274,0.009,94575.0,94574.0,1.913745]
[1735333655677,0.009,94575.0,94574.0,2.10367436]
[1735333656675,0.009,94575.0,94574.0,2.1667554]
[1735333658479,0.009,94575.0,94574.0,1.913745]
[1735333659179,0.12683047,94589.0,94588.0,0.052937]
[1735333659479,0.12683047,94589.0,94588.0,0.413737]
[1735333660083,0.3608,94595.0,94588.0,0.3608]
[1735333660283,0.1583351,94597.0,94596.0,0.052933]
[1735333660582,0.052934,94594.0,94591.0,0.052935]
[1735333660774,0.052935,94593.0,94591.0,0.052935]
[1735333661185,0.052935,94593.0,94588.0,0.3608]
[1735333661385,0.052935,94593.0,94592.0,0.052935]
[1735333662884,0.007,94595.0,94594.0,0.052934]
[1735333663085,0.016,94595.0,94594.0,0.052934]
[1735333663284,0.009,94595.0,94594.0,0.052934]
[1735333663584,0.17966857,94597.0,94591.0,0.001]
[1735333663886,0.17966857,94597.0,94595.0,0.052933]
[1735333664577,0.17966857,94597.0,94594.0,0.001]
[1735333664578,0.17966857,94597.0,94596.0,0.413733]
[1735333664783,0.061932,94597.0,94596.0,0.413733]
[1735333665691,0.061932,94597.0,94596.0,0.052933]
[1735333666780,0.069932,94597.0,94596.0,0.052933]
[1735333667284,0.017,94597.0,94596.0,0.052933]
[1735333667584,0.017,94597.0,94596.0,0.053933]
[1735333669386,0.14377442,94597.0,94596.0,0.053933]
[1735333671589,0.1753351,94597.0,94596.0,0.053933]
[1735333671884,0.1753351,94597.0,94596.0,0.414733]
[1735333672279,0.1753351,94597.0,94596.0,1.914733]
[1735333672880,0.017,94597.0,94596.0,1.914733]
[1735333673883,0.017,94597.0,94596.0,0.414733]
[1735333674891,0.1753351,94597.0,94596.0,0.414733]
[1735333676782,0.1753351,94597.0,94596.0,1.914733]
[1735333677080,0.017,94597.0,94596.0,1.914733]
[1735333677288,0.1438363,94597.0,94596.0,1.914733]
[1735333679083,0.1358363,94597.0,94596.0,1.913733]
[1735333679286,0.1418363,94597.0,94596.0,1.914733]
[1735333679493,0.1418363,94597.0,94596.0,0.414733]
[1735333680084,0.18994358,94608.0,94607.0,0.052926]
[1735333680292,0.12682796,94608.0,94607.0,0.413726]
[1735333681496,0.3608,94623.0,94622.0,0.052918]
[1735333681891,0.3608,94623.0,94607.0,0.3608]
[1735333681892,0.05292,94618.0,94607.0,0.3608]
[1735333682099,0.05292,94618.0,94616.0,0.052921]
[1735333682398,0.05292,94618.0,94617.0,0.052921]
[1735333682992,0.06092,94618.0,94617.0,0.052921]
[1735333683700,0.06892,94618.0,94617.0,0.054921]
[1735333684903,0.06892,94618.0,94617.0,0.06568284]
[1735333685091,0.016,94618.0,94617.0,0.06568284]
[1735333685600,0.090418,94622.0,94619.0,0.052919]
[1735333685801,0.090418,94622.0,94620.0,0.052919]
[1735333686402,0.016,94618.0,94617.0,0.06568284]
[1735333686900,0.007,94618.0,94617.0,0.06468284]
[1735333688100,0.0545,94622.0,94620.0,0.001]
[1735333688298,0.052919,94621.0,94620.0,0.002]
[1735333688603,0.052919,94621.0,94620.0,0.054919]
[1735333688792,0.052919,94621.0,94620.0,0.053919]
[1735333688999,0.052919,94621.0,94620.0,0.052919]
[1735333689600,0.061919,94621.0,94620.0,0.053919]
[1735333689797,0.069919,94621.0,94620.0,0.054919]
[1735333694990,0.052919,94621.0,94620.0,0.052919]
[1735333695195,0.060919,94621.0,94620.0,0.053919]
[1735333695797,0.057919,94621.0,94620.0,0.053919]
[1735333696097,0.060919,94621.0,94620.0,0.053919]
[1735333696495,0.060919,94621.0,94620.0,0.001]
[1735333696702,0.421719,94621.0,94620.0,0.001]
[1735333697494,0.422719,94621.0,94620.0,0.001]
[1735333697898,0.052924,94611.0,94610.0,0.06353858]
[1735333699008,0.054924,94611.0,94610.0,0.06353858]
[1735333699611,0.056924,94611.0,94610.0,0.06353858]
[1735333700502,0.054924,94611.0,94610.0,0.06353858]
[1735333700706,0.056924,94611.0,94610.0,0.06353858]
[1735333703112,0.057924,94611.0,94610.0,0.06353858]
[1735333703714,0.058924,94611.0,94610.0,0.06353858]
[1735333704626,0.059924,94611.0,94610.0,0.06353858]
[1735333706120,0.052926,94607.0,94606.0,0.25460259]
[1735333706319,0.052926,94607.0,94606.0,0.25312259]
[1735333707120,0.082,94610.0,94602.0,0.25312259]
[1735333707314,0.007,94611.0,94609.0,0.052925]
[1735333707812,0.004,94611.0,94609.0,0.052925]
[1735333708014,0.01243077,94610.0,94609.0,0.052925]
[1735333709215,0.01243077,94610.0,94608.0,0.25312259]
[1735333709419,0.01343077,94610.0,94608.0,0.19024324]
[1735333709617,0.01243077,94609.0,94608.0,0.24316924]
[1735333710027,0.001,94610.0,94608.0,0.24316924]
[1735333710217,0.003,94610.0,94608.0,0.24316924]
[1735333710919,0.24305301,94619.0,94617.0,0.052921]
[1735333711513,0.05292,94619.0,94617.0,0.052921]
[1735333712131,0.05792,94619.0,94617.0,0.052921]
[1735333714018,0.06092,94619.0,94617.0,0.052921]
[1735333714618,0.05792,94619.0,94617.0,0.052921]
[1735333714929,0.06092,94619.0,94617.0,0.06363112]
[1735333716930,0.05792,94619.0,94617.0,0.06363112]
[1735333717130,0.06092,94619.0,94617.0,0.06363112]
[1735333718333,0.05592,94619.0,94617.0,0.06363112]
[1735333718534,0.05992,94619.0,94617.0,0.06363112]
[1735333719031,0.05292,94618.0,94617.0,0.06363112]
[1735333720124,0.05592,94618.0,94617.0,0.06363112]
[1735333720624,0.05992,94618.0,94617.0,0.06363112]
[1735333721020,0.05292,94618.0,94617.0,0.06363112]
[1735333721230,0.06092,94618.0,94617.0,0.06363112]
[1735333721826,0.05992,94618.0,94617.0,0.06363112]
[1735333722027,0.007,94618.0,94617.0,0.06363112]
[1735333722227,0.19013301,94631.0,94630.0,0.052913]
[1735333722537,0.61382316,94653.0,94638.0,0.052909]
[1735333722832,0.18303414,94646.0,94645.0,0.052905]
[1735333723038,0.0708833,94646.0,94645.0,0.413705]
[1735333723533,0.0569687,94646.0,94645.0,0.413705]
[1735333723937,0.0392,94674.0,94645.0,0.73052038]
[1735333724137,0.052892,94668.0,94667.0,0.3608]
[1735333724321,0.0392,94674.0,94660.0,0.052896]
[1735333724529,0.10733919,94670.0,94653.0,0.4137]
[1735333725032,0.052897,94659.0,94653.0,0.4137]
[1735333725932,0.052897,94659.0,94655.0,0.052899]
[1735333726127,0.052897,94659.0,94656.0,0.052899]
[1735333727230,0.008,94669.0,94667.0,0.052892]
[1735333727535,0.05289,94673.0,94668.0,0.052892]
[1735333727725,0.05289,94673.0,94667.0,0.3608]
[1735333728041,0.05289,94672.0,94669.0,0.052892]
[1735333730032,0.06189,94672.0,94669.0,0.053892]
[1735333730232,0.052891,94671.0,94669.0,0.053892]
[1735333731730,0.061891,94671.0,94669.0,0.054892]
[1735333732138,0.061891,94671.0,94669.0,0.001]
[1735333732339,0.067891,94671.0,94669.0,0.002]
[1735333741448,0.3608,94670.0,94669.0,0.002]
[1735333742536,0.3608,94670.0,94669.0,0.001]
[1735333742742,0.3698,94670.0,94669.0,0.001]
[1735333743049,0.3758,94670.0,94669.0,0.002]
[1735333744445,0.3758,94670.0,94669.0,0.054892]
[1735333744848,0.015,94670.0,94669.0,0.054892]
[1735333746746,0.015,94670.0,94669.0,1.554892]
[1735333747256,0.052887,94678.0,94675.0,0.052888]
[1735333747445,0.052887,94678.0,94676.0,0.052888]
[1735333748953,0.056887,94678.0,94676.0,0.052888]
[1735333749251,0.058887,94678.0,94676.0,0.052888]
[1735333749658,0.057887,94678.0,94676.0,0.052888]
[1735333752047,0.057887,94678.0,94677.0,0.18955621]
[1735333753150,0.057887,94678.0,94677.0,0.25274162]
[1735333755145,0.057887,94678.0,94677.0,0.21967042]
[1735333755457,0.418687,94678.0,94677.0,0.21967042]
[1735333756959,0.3658,94678.0,94671.0,0.18992178]
[1735333757162,0.0817,94677.0,94671.0,0.18992178]
[1735333757952,0.05289,94672.0,94670.0,0.18992178]
[1735333758151,0.0394,94671.0,94670.0,0.18992178]
[1735333758355,0.0394,94671.0,94670.0,0.12492178]
[1735333758955,0.052899,94656.0,94653.0,0.052901]
[1735333759168,0.3608,94658.0,94653.0,0.052901]
[1735333759359,0.0529,94655.0,94653.0,0.052901]
[1735333761355,0.0529,94655.0,94653.0,0.053901]
[1735333761858,0.0539,94655.0,94653.0,0.052901]
[1735333762454,0.052904,94648.0,94646.0,0.01074093]
[1735333762659,0.3608,94647.0,94634.0,0.31592703]
[1735333762854,0.05291,94636.0,94634.0,0.31592703]
[1735333763567,0.05291,94636.0,94633.0,0.06363496]
[1735333763755,0.3608,94639.0,94637.0,0.052909]
[1735333764060,0.052907,94642.0,94637.0,0.052909]
[1735333764265,0.052907,94642.0,94631.0,0.0416]
[1735333764266,0.3608,94647.0,94642.0,0.052907]
[1735333764461,0.413704,94647.0,94642.0,0.052907]
[1735333764653,0.413704,94647.0,94644.0,0.052906]
[1735333766567,0.413704,94647.0,94645.0,1.5]
[1735333768064,0.413704,94647.0,94645.0,1.503]
[1735333768769,0.41358981,94647.0,94645.0,1.503]
[1735333769363,0.01064564,94658.0,94645.0,1.503]
[1735333769364,0.3608,94658.0,94645.0,1.503]
[1735333769570,0.052899,94657.0,94645.0,1.503]
[1735333770069,0.052899,94657.0,94655.0,0.052899]
[1735333771371,0.053899,94657.0,94655.0,0.052899]
[1735333772065,0.054899,94657.0,94655.0,0.052899]
[1735333772665,0.054899,94657.0,94655.0,0.06356188]
[1735333773264,0.3608,94688.0,94656.0,0.3608]
[1735333773461,0.052883,94684.0,94680.0,0.3608]
[1735333773662,0.0409,94687.0,94680.0,0.3608]
[1735333774066,0.0425,94693.0,94692.0,0.052879]
[1735333774571,0.0409,94699.0,94694.0,0.052878]
[1735333774874,0.22183889,94696.0,94695.0,0.3608]
[1735333775256,0.1,94700.0,94699.0,0.052875]
[1735333777161,0.101,94700.0,94699.0,0.053875]
[1735333777361,0.101,94700.0,94699.0,0.054875]
[1735333780074,0.102,94700.0,94699.0,0.054875]
[1735333780476,0.103,94700.0,94699.0,0.054875]
[1735333782571,0.103,94700.0,94699.0,0.415675]
[1735333782772,0.103,94700.0,94699.0,0.054875]
[1735333782970,0.103,94700.0,94699.0,0.415675]
[1735333786976,0.103,94700.0,94699.0,0.002]
[1735333787974,0.103,94700.0,94699.0,0.054875]
[1735333791883,0.101,94700.0,94699.0,0.053875]
[1735333792068,0.103,94700.0,94699.0,0.053875]
[1735333792470,0.01078571,94730.0,94728.0,0.052858]
[1735333792777,0.052857,94731.0,94728.0,0.052858]
[1735333793869,0.001,94730.0,94728.0,0.053858]
[1735333794281,0.052857,94731.0,94728.0,0.052858]
[1735333794581,0.053857,94731.0,94728.0,0.001]
[1735333794889,0.053857,94731.0,94729.0,0.052858]
[1735333795274,0.054857,94731.0,94729.0,0.052858]
[1735333795885,0.053857,94731.0,94729.0,0.052858]
[1735333796082,0.052857,94731.0,94729.0,0.053858]
[1735333796478,0.052857,94731.0,94729.0,0.054858]
[1735333799292,0.052857,94731.0,94729.0,0.06571776]
[1735333799682,0.052857,94731.0,94729.0,0.01285976]
[1735333799876,0.052857,94731.0,94729.0,0.002]
[1735333801482,0.053857,94731.0,94729.0,0.001]
[1735333801888,0.001,94731.0,94726.0,0.01069654]
[1735333802084,0.001,94731.0,94723.0,0.052862]
[1735333802279,0.05286,94726.0,94722.0,0.3608]
[1735333802584,0.05286,94726.0,94725.0,0.05286]
[1735333803679,0.05286,94726.0,94725.0,0.05386]
[1735333804384,0.05386,94726.0,94725.0,0.05386]
[1735333807073,0.001,94726.0,94725.0,0.05386]
[1735333808184,0.05285,94745.0,94744.0,0.05285]
[1735333808785,0.052846,94752.0,94750.0,0.01979847]
[1735333808990,0.052846,94751.0,94742.0,0.10733919]
[1735333809286,0.0403,94755.0,94754.0,0.052844]
[1735333809488,0.3608,94756.0,94744.0,0.001]
[1735333809676,0.3608,94756.0,94755.0,0.052844]
[1735333810389,0.413643,94756.0,94755.0,0.052844]
[1735333810689,0.3608,94756.0,94755.0,0.052844]
[1735333811076,0.3608,94756.0,94755.0,0.06342571]
[1735333811889,0.3618,94756.0,94755.0,0.06442571]
[1735333812187,0.001,94756.0,94755.0,0.06442571]
[1735333812982,0.001,94756.0,94755.0,0.06542571]
[1735333813590,0.001,94756.0,94755.0,0.06442571]
[1735333813986,0.052841,94759.0,94755.0,0.06342571]
[1735333814187,0.052845,94753.0,94749.0,0.413647]
[1735333814384,0.052845,94753.0,94749.0,0.4240115]
[1735333814586,0.052845,94753.0,94749.0,0.3711645]
[1735333814781,0.052845,94753.0,94751.0,0.052846]
[1735333815592,0.053845,94753.0,94751.0,0.052846]
[1735333817796,0.001,94753.0,94751.0,0.052846]
[1735333820088,0.001,94753.0,94750.0,0.052846]
[1735333820288,0.001,94753.0,94752.0,0.052845]
[1735333820897,0.052838,94765.0,94764.0,0.052839]
[1735333821296,0.3608,94768.0,94766.0,0.052838]
[1735333821507,0.0389,94775.0,94774.0,0.052833]
[1735333822797,0.0389,94775.0,94774.0,0.053833]